[Event "Early-Titled-Tuesday-Blitz-October-03-2023"]
[Site "Chess.com"]
[Date "2023.10.03"]
[Round "3"]
[White "SRob2003"]
[Black "Witik"]
[Result "0-1"]
[WhiteElo "2613"]
[BlackElo "2844"]
[TimeControl "180+1"]
[EndTime "8:29:01 PDT"]
[Termination "Witik won by resignation"]

1. c4 {[%clk 0:03:00.9]} 1... e5 {[%clk 0:02:56.6]} 2. g3 {[%clk 0:03:01.6]}
2... Nf6 {[%clk 0:02:53.8]} 3. Bg2 {[%clk 0:03:02.3]} 3... d5 {[%clk 0:02:54.3]}
4. cxd5 {[%clk 0:03:02.8]} 4... Nxd5 {[%clk 0:02:55.2]} 5. Nf3 {[%clk
0:03:03.6]} 5... Nc6 {[%clk 0:02:55]} 6. O-O {[%clk 0:03:04.3]} 6... Nb6 {[%clk
0:02:55.7]} 7. d3 {[%clk 0:03:03.2]} 7... Be7 {[%clk 0:02:56]} 8. a3 {[%clk
0:03:03.1]} 8... O-O {[%clk 0:02:55.1]} 9. Nc3 {[%clk 0:03:03.1]} 9... Be6
{[%clk 0:02:49.8]} 10. b4 {[%clk 0:03:00.9]} 10... a5 {[%clk 0:02:49.4]} 11. b5
{[%clk 0:03:00.8]} 11... Nd4 {[%clk 0:02:49.4]} 12. Bb2 {[%clk 0:03:01.4]} 12...
Nxf3+ {[%clk 0:02:23.8]} 13. Bxf3 {[%clk 0:03:02.3]} 13... Rb8 {[%clk
0:02:23.9]} 14. Qc2 {[%clk 0:02:47.7]} 14... Qd7 {[%clk 0:02:08]} 15. Rfc1
{[%clk 0:02:46.5]} 15... Rfc8 {[%clk 0:02:05.7]} 16. Rab1 {[%clk 0:02:29.3]}
16... Bg4 {[%clk 0:01:59.3]} 17. Bxg4 {[%clk 0:02:07.9]} 17... Qxg4 {[%clk
0:02:00.2]} 18. Ne4 {[%clk 0:01:50.7]} 18... Qe6 {[%clk 0:01:55]} 19. Nc5 {[%clk
0:01:36.5]} 19... Qd5 {[%clk 0:01:44.6]} 20. Qb3 {[%clk 0:00:50.8]} 20... Qxb3
{[%clk 0:01:20.4]} 21. Nxb3 {[%clk 0:00:51.7]} 21... a4 {[%clk 0:01:19.6]} 22.
Na5 {[%clk 0:00:47.9]} 22... f6 {[%clk 0:01:19]} 23. Nc4 {[%clk 0:00:46.4]}
23... Kf7 {[%clk 0:01:10.2]} 24. Rc2 {[%clk 0:00:44.6]} 24... Ke6 {[%clk
0:01:07.6]} 25. Rbc1 {[%clk 0:00:43.5]} 25... Kd7 {[%clk 0:00:52.7]} 26. f4
{[%clk 0:00:30.4]} 26... exf4 {[%clk 0:00:50.6]} 27. gxf4 {[%clk 0:00:31.3]}
27... Nd5 {[%clk 0:00:46.9]} 28. f5 {[%clk 0:00:29.1]} 28... b6 {[%clk
0:00:36.8]} 29. e4 {[%clk 0:00:28.1]} 29... Nf4 {[%clk 0:00:35.5]} 30. Rf1
{[%clk 0:00:23]} 30... Nh5 {[%clk 0:00:27.5]} 31. e5 {[%clk 0:00:16.4]} 31... c6
{[%clk 0:00:28.1]} 32. e6+ {[%clk 0:00:16.5]} 32... Ke8 {[%clk 0:00:28.3]} 33.
bxc6 {[%clk 0:00:13.7]} 33... Rxc6 {[%clk 0:00:28.5]} 34. Rfc1 {[%clk
0:00:14.4]} 34... b5 {[%clk 0:00:24.9]} 35. Na5 {[%clk 0:00:10.4]} 35... Rxc2
{[%clk 0:00:23.4]} 36. Rxc2 {[%clk 0:00:11.3]} 36... Nf4 {[%clk 0:00:24.2]} 37.
d4 {[%clk 0:00:07.1]} 37... g6 {[%clk 0:00:24.5]} 38. fxg6 {[%clk 0:00:03.4]}
38... hxg6 {[%clk 0:00:24.9]} 39. Bc1 {[%clk 0:00:03.9]} 39... Nxe6 {[%clk
0:00:25.2]} 40. d5 {[%clk 0:00:03.4]} 40... Nd4 {[%clk 0:00:25.7]} 41. Rb2
{[%clk 0:00:01.7]} 41... Bxa3 {[%clk 0:00:24.2]} 42. Rb1 {[%clk 0:00:01.8]}
42... Bxc1 {[%clk 0:00:24.4]} 43. Rxc1 {[%clk 0:00:02.7]} 43... Ne2+ {[%clk
0:00:24.8]} 0-1

[Event "Early-Titled-Tuesday-Blitz-October-03-2023"]
[Site "Chess.com"]
[Date "2023.10.03"]
[Round "3"]
[White "Sethu0025"]
[Black "juancruzarias"]
[Result "1-0"]
[WhiteElo "2862"]
[BlackElo "2640"]
[TimeControl "180+1"]
[EndTime "8:29:02 PDT"]
[Termination "Sethu0025 won on time"]

1. d4 {[%clk 0:03:00.9]} 1... d5 {[%clk 0:02:59.7]} 2. c4 {[%clk 0:03:00.6]}
2... e6 {[%clk 0:03:00]} 3. Nf3 {[%clk 0:03:00.3]} 3... Nf6 {[%clk 0:02:59.5]}
4. Nc3 {[%clk 0:02:59.6]} 4... a6 {[%clk 0:02:59.2]} 5. cxd5 {[%clk 0:02:58.7]}
5... exd5 {[%clk 0:03:00.1]} 6. Bg5 {[%clk 0:02:59]} 6... Be6 {[%clk 0:02:59.4]}
7. e3 {[%clk 0:02:59.1]} 7... Nbd7 {[%clk 0:02:57.1]} 8. Bd3 {[%clk 0:02:47.5]}
8... Bd6 {[%clk 0:02:50.8]} 9. h3 {[%clk 0:02:41.1]} 9... c6 {[%clk 0:02:50]}
10. O-O {[%clk 0:02:37.6]} 10... O-O {[%clk 0:02:46.9]} 11. Bf4 {[%clk
0:02:35.6]} 11... Qc7 {[%clk 0:02:46.5]} 12. Bxd6 {[%clk 0:02:33.7]} 12... Qxd6
{[%clk 0:02:47.4]} 13. Qc2 {[%clk 0:02:29.4]} 13... Rfe8 {[%clk 0:02:45.3]} 14.
b4 {[%clk 0:02:27.1]} 14... g6 {[%clk 0:02:27.2]} 15. Rfb1 {[%clk 0:02:25.4]}
15... b5 {[%clk 0:02:19.5]} 16. a4 {[%clk 0:02:21.7]} 16... Nb6 {[%clk
0:02:19.5]} 17. Nd2 {[%clk 0:02:13.7]} 17... Nc4 {[%clk 0:02:11.7]} 18. Nb3
{[%clk 0:02:13.1]} 18... Nd7 {[%clk 0:01:42.1]} 19. Nc5 {[%clk 0:02:12.8]} 19...
Nxc5 {[%clk 0:01:37.7]} 20. bxc5 {[%clk 0:01:56.3]} 20... Qe7 {[%clk 0:01:29.8]}
21. axb5 {[%clk 0:01:21.9]} 21... axb5 {[%clk 0:01:30.7]} 22. Qc1 {[%clk
0:01:15.4]} 22... Qg5 {[%clk 0:01:07.7]} 23. Kh2 {[%clk 0:01:04.6]} 23... Bf5
{[%clk 0:00:58.8]} 24. Bxf5 {[%clk 0:00:44]} 24... Qxf5 {[%clk 0:00:59.7]} 25.
Kg1 {[%clk 0:00:44.4]} 25... Qd3 {[%clk 0:00:47.7]} 26. Na2 {[%clk 0:00:38.6]}
26... Nd2 {[%clk 0:00:36.2]} 27. Nb4 {[%clk 0:00:36.7]} 27... Qe2 {[%clk
0:00:20.6]} 28. Rxa8 {[%clk 0:00:36.4]} 28... Rxa8 {[%clk 0:00:20.1]} 29. Rb2
{[%clk 0:00:37]} 29... Qc4 {[%clk 0:00:13.2]} 30. Qxd2 {[%clk 0:00:34.1]} 30...
Ra1+ {[%clk 0:00:12.8]} 31. Kh2 {[%clk 0:00:34.4]} 31... Qf1 {[%clk 0:00:13.5]}
32. Nxc6 {[%clk 0:00:31]} 32... h5 {[%clk 0:00:14]} 33. Kg3 {[%clk 0:00:28.9]}
33... h4+ {[%clk 0:00:13.4]} 34. Kf3 {[%clk 0:00:29.2]} 34... Qg1 {[%clk
0:00:10.1]} 35. Ne7+ {[%clk 0:00:22.7]} 35... Kh7 {[%clk 0:00:08.3]} 36. Nxd5
{[%clk 0:00:22.4]} 36... Qh2 {[%clk 0:00:08.9]} 37. e4 {[%clk 0:00:19.1]} 37...
Rg1 {[%clk 0:00:07.6]} 38. Qg5 {[%clk 0:00:16.9]} 1-0

[Event "Early-Titled-Tuesday-Blitz-October-03-2023"]
[Site "Chess.com"]
[Date "2023.10.03"]
[Round "3"]
[White "KatakuriDono"]
[Black "Lady_Nika"]
[Result "0-1"]
[WhiteElo "2330"]
[BlackElo "2538"]
[TimeControl "180+1"]
[EndTime "8:29:02 PDT"]
[Termination "Lady_Nika won on time"]

1. d4 {[%clk 0:03:00.9]} 1... d5 {[%clk 0:02:56.9]} 2. c4 {[%clk 0:03:01]} 2...
e6 {[%clk 0:02:57.3]} 3. Nc3 {[%clk 0:03:01.1]} 3... f5 {[%clk 0:02:56.3]} 4.
Nf3 {[%clk 0:02:58.5]} 4... Nf6 {[%clk 0:02:56.2]} 5. g3 {[%clk 0:02:58.3]} 5...
c6 {[%clk 0:02:56.5]} 6. Bg2 {[%clk 0:02:58.4]} 6... Bd6 {[%clk 0:02:56.7]} 7.
O-O {[%clk 0:02:56.4]} 7... O-O {[%clk 0:02:56.6]} 8. Nd2 {[%clk 0:02:45.9]}
8... Nbd7 {[%clk 0:02:55.4]} 9. f3 {[%clk 0:02:44.7]} 9... f4 {[%clk 0:02:54.7]}
10. gxf4 {[%clk 0:02:20.2]} 10... Bxf4 {[%clk 0:02:54.3]} 11. e4 {[%clk
0:02:20.4]} 11... Be3+ {[%clk 0:02:53]} 12. Kh1 {[%clk 0:02:18.8]} 12... Bxd4
{[%clk 0:02:53.2]} 13. cxd5 {[%clk 0:02:14.3]} 13... exd5 {[%clk 0:02:52.3]} 14.
exd5 {[%clk 0:01:59.3]} 14... Bxc3 {[%clk 0:02:51.7]} 15. bxc3 {[%clk
0:01:57.7]} 15... Nxd5 {[%clk 0:02:51.3]} 16. Ne4 {[%clk 0:01:46.4]} 16... N7f6
{[%clk 0:02:48.8]} 17. c4 {[%clk 0:01:38.3]} 17... Nb6 {[%clk 0:02:43.8]} 18.
Qc2 {[%clk 0:01:24.7]} 18... Bf5 {[%clk 0:02:41.6]} 19. Bb2 {[%clk 0:01:20.4]}
19... Nxe4 {[%clk 0:02:35.4]} 20. fxe4 {[%clk 0:01:17.8]} 20... Bg6 {[%clk
0:02:35.4]} 21. c5 {[%clk 0:01:07.7]} 21... Nd7 {[%clk 0:02:34.8]} 22. Rxf8+
{[%clk 0:00:54.9]} 22... Nxf8 {[%clk 0:02:26.8]} 23. Rf1 {[%clk 0:00:54]} 23...
Qe7 {[%clk 0:02:20.9]} 24. Qc4+ {[%clk 0:00:42.4]} 24... Kh8 {[%clk 0:02:19.4]}
25. Qc3 {[%clk 0:00:29.8]} 25... Ne6 {[%clk 0:02:17.4]} 26. a4 {[%clk
0:00:21.9]} 26... Nxc5 {[%clk 0:02:16.6]} 27. Ba3 {[%clk 0:00:21.4]} 27... b6
{[%clk 0:02:16.6]} 28. a5 {[%clk 0:00:20.6]} 28... Rf8 {[%clk 0:02:14.9]} 29.
Rxf8+ {[%clk 0:00:18.5]} 29... Qxf8 {[%clk 0:02:15]} 30. Bxc5 {[%clk 0:00:18.6]}
30... Qxc5 {[%clk 0:02:13.1]} 31. Qxc5 {[%clk 0:00:18.7]} 31... bxc5 {[%clk
0:02:13.3]} 32. e5 {[%clk 0:00:19.4]} 32... Be8 {[%clk 0:02:13.3]} 33. Kg1
{[%clk 0:00:19.3]} 33... Kg8 {[%clk 0:02:13.5]} 34. Kf2 {[%clk 0:00:19.7]} 34...
Kf7 {[%clk 0:02:14.1]} 35. Bh3 {[%clk 0:00:18.8]} 35... Ke7 {[%clk 0:02:11.4]}
36. Ke3 {[%clk 0:00:18.9]} 36... Bd7 {[%clk 0:02:11.5]} 37. Bg2 {[%clk
0:00:17.2]} 37... Ke6 {[%clk 0:02:11.5]} 38. Ke4 {[%clk 0:00:17.4]} 38... Ke7
{[%clk 0:02:11.5]} 39. Bf3 {[%clk 0:00:17.1]} 39... Be6 {[%clk 0:02:11.6]} 40.
Kd3 {[%clk 0:00:15.2]} 40... Bd5 {[%clk 0:02:10.8]} 41. Bg4 {[%clk 0:00:15.2]}
41... Be6 {[%clk 0:02:00.3]} 42. Bf3 {[%clk 0:00:14.9]} 42... Bd5 {[%clk
0:02:00.1]} 43. Bg4 {[%clk 0:00:15]} 43... h5 {[%clk 0:01:48.7]} 44. Bc8 {[%clk
0:00:11.8]} 44... g5 {[%clk 0:01:44.2]} 45. Bf5 {[%clk 0:00:11.9]} 45... Be6
{[%clk 0:01:33.2]} 46. Be4 {[%clk 0:00:11.6]} 46... Bd7 {[%clk 0:01:33.6]} 47.
Kc4 {[%clk 0:00:10.3]} 47... Ke6 {[%clk 0:01:33.5]} 48. Kxc5 {[%clk 0:00:09.5]}
48... Kxe5 {[%clk 0:01:33.8]} 49. Bxc6 {[%clk 0:00:10.2]} 49... Bc8 {[%clk
0:01:22.2]} 50. Bg2 {[%clk 0:00:06.9]} 50... g4 {[%clk 0:01:19.8]} 51. Kc6
{[%clk 0:00:07]} 51... a6 {[%clk 0:01:15.6]} 52. Kc7 {[%clk 0:00:06.5]} 52...
Be6 {[%clk 0:01:15.7]} 53. Bf1 {[%clk 0:00:04.6]} 53... h4 {[%clk 0:01:08.3]}
54. Bxa6 {[%clk 0:00:04.2]} 54... h3 {[%clk 0:01:04.8]} 55. Bf1 {[%clk
0:00:02.4]} 55... Bd5 {[%clk 0:01:04.8]} 56. a6 {[%clk 0:00:01.6]} 56... g3
{[%clk 0:01:04.6]} 0-1

[Event "Early-Titled-Tuesday-Blitz-October-03-2023"]
[Site "Chess.com"]
[Date "2023.10.03"]
[Round "3"]
[White "Better_Chess_Faster"]
[Black "agustinv04"]
[Result "1/2-1/2"]
[WhiteElo "2022"]
[BlackElo "2295"]
[TimeControl "180+1"]
[EndTime "8:29:02 PDT"]
[Termination "Game drawn by repetition"]

1. e4 {[%clk 0:03:00.9]} 1... e5 {[%clk 0:03:00.1]} 2. Nf3 {[%clk 0:03:00.5]}
2... Nc6 {[%clk 0:03:00.6]} 3. Bb5 {[%clk 0:02:59.9]} 3... a6 {[%clk 0:03:00.3]}
4. Ba4 {[%clk 0:03:00]} 4... Nf6 {[%clk 0:03:00.9]} 5. O-O {[%clk 0:02:59.3]}
5... Be7 {[%clk 0:03:01.5]} 6. Re1 {[%clk 0:02:59.1]} 6... b5 {[%clk 0:03:02.1]}
7. Bb3 {[%clk 0:02:58.8]} 7... O-O {[%clk 0:03:03]} 8. h3 {[%clk 0:02:58.4]}
8... Bb7 {[%clk 0:02:56.4]} 9. d3 {[%clk 0:02:58.3]} 9... d5 {[%clk 0:02:55.4]}
10. exd5 {[%clk 0:02:58.3]} 10... Nxd5 {[%clk 0:02:56.3]} 11. Nxe5 {[%clk
0:02:58.2]} 11... Nd4 {[%clk 0:02:55.1]} 12. Nc3 {[%clk 0:02:55.7]} 12... Nb4
{[%clk 0:02:55]} 13. Ne4 {[%clk 0:02:53.2]} 13... Nxb3 {[%clk 0:02:50.2]} 14.
axb3 {[%clk 0:02:52.4]} 14... c5 {[%clk 0:02:51.1]} 15. Bd2 {[%clk 0:02:42.6]}
15... Nd5 {[%clk 0:02:23.7]} 16. Nc3 {[%clk 0:02:27.8]} 16... Nb4 {[%clk
0:02:22.2]} 17. Ne4 {[%clk 0:02:27.2]} 17... Nc6 {[%clk 0:02:16.7]} 18. Nxc6
{[%clk 0:02:23.7]} 18... Bxc6 {[%clk 0:02:17.6]} 19. Bc3 {[%clk 0:02:16.5]}
19... Qd5 {[%clk 0:02:05.2]} 20. Qg4 {[%clk 0:02:11.2]} 20... f6 {[%clk
0:02:04.9]} 21. f3 {[%clk 0:01:55.5]} 21... Kh8 {[%clk 0:01:54]} 22. Ng3 {[%clk
0:01:49.3]} 22... Bd6 {[%clk 0:01:50.8]} 23. Nf5 {[%clk 0:01:45.2]} 23... Ra7
{[%clk 0:01:43.2]} 24. Rxa6 {[%clk 0:01:29.2]} 24... Rc7 {[%clk 0:01:03.4]} 25.
Rb6 {[%clk 0:01:25]} 25... b4 {[%clk 0:00:54.5]} 26. Bd2 {[%clk 0:01:18.3]}
26... Be5 {[%clk 0:00:53.5]} 27. Bf4 {[%clk 0:00:55]} 27... Bxf4 {[%clk
0:00:39.3]} 28. Qxf4 {[%clk 0:00:55.1]} 28... Ra7 {[%clk 0:00:36]} 29. Ne7
{[%clk 0:00:45.1]} 29... Qd8 {[%clk 0:00:28.8]} 30. Nxc6 {[%clk 0:00:40.3]}
30... Qxb6 {[%clk 0:00:29.3]} 31. Nxa7 {[%clk 0:00:38.6]} 31... Qxa7 {[%clk
0:00:30.2]} 32. Qd6 {[%clk 0:00:36.4]} 32... Rc8 {[%clk 0:00:24.7]} 33. Qe7
{[%clk 0:00:30.8]} 33... Qb8 {[%clk 0:00:19.9]} 34. Re6 {[%clk 0:00:25.8]} 34...
h6 {[%clk 0:00:19.7]} 35. Qf7 {[%clk 0:00:25.4]} 35... Qg3 {[%clk 0:00:19.2]}
36. Re7 {[%clk 0:00:23.3]} 36... Rg8 {[%clk 0:00:15.2]} 37. Re8 {[%clk 0:00:22]}
37... Rxe8 {[%clk 0:00:14.7]} 38. Qxe8+ {[%clk 0:00:22.9]} 38... Kh7 {[%clk
0:00:15.6]} 39. Qe4+ {[%clk 0:00:22.2]} 39... Kg8 {[%clk 0:00:15.8]} 40. Qe6+
{[%clk 0:00:21.6]} 40... Kf8 {[%clk 0:00:16.2]} 41. Qc8+ {[%clk 0:00:20]} 41...
Kf7 {[%clk 0:00:15.9]} 42. Qxc5 {[%clk 0:00:19.6]} 42... Qe1+ {[%clk 0:00:16.1]}
43. Kh2 {[%clk 0:00:19.6]} 43... Qd2 {[%clk 0:00:14.3]} 44. Qc4+ {[%clk
0:00:18.6]} 44... Kg6 {[%clk 0:00:14.2]} 45. Qe4+ {[%clk 0:00:18.5]} 45... Kf7
{[%clk 0:00:14.2]} 46. Qd5+ {[%clk 0:00:18.5]} 46... Kg6 {[%clk 0:00:14.7]} 47.
Qe4+ {[%clk 0:00:17.5]} 47... Kf7 {[%clk 0:00:15.4]} 48. Qb7+ {[%clk 0:00:15.9]}
48... Kg6 {[%clk 0:00:15.7]} 49. Qe4+ {[%clk 0:00:15]} 1/2-1/2

[Event "Early-Titled-Tuesday-Blitz-October-03-2023"]
[Site "Chess.com"]
[Date "2023.10.03"]
[Round "3"]
[White "LUISMIGUELOV"]
[Black "emeli_chess"]
[Result "1-0"]
[WhiteElo "2159"]
[BlackElo "2343"]
[TimeControl "180+1"]
[EndTime "8:29:03 PDT"]
[Termination "LUISMIGUELOV won by checkmate"]

1. e4 {[%clk 0:02:24.2]} 1... c5 {[%clk 0:02:55.8]} 2. d4 {[%clk 0:02:23.1]}
2... cxd4 {[%clk 0:02:55.7]} 3. c3 {[%clk 0:02:23.7]} 3... d3 {[%clk 0:02:55.9]}
4. Bxd3 {[%clk 0:02:22.8]} 4... Nc6 {[%clk 0:02:55.4]} 5. f4 {[%clk 0:02:22.6]}
5... d6 {[%clk 0:02:54.9]} 6. Nf3 {[%clk 0:02:22.9]} 6... e6 {[%clk 0:02:53]} 7.
Be3 {[%clk 0:02:23.3]} 7... Nf6 {[%clk 0:02:50.3]} 8. h3 {[%clk 0:02:22]} 8...
Be7 {[%clk 0:02:50]} 9. Nbd2 {[%clk 0:02:21.8]} 9... O-O {[%clk 0:02:48.1]} 10.
Qc2 {[%clk 0:02:21.2]} 10... h6 {[%clk 0:02:44.8]} 11. g4 {[%clk 0:02:20.9]}
11... Nd7 {[%clk 0:02:38.7]} 12. O-O-O {[%clk 0:02:19.5]} 12... a6 {[%clk
0:02:05.3]} 13. h4 {[%clk 0:02:18.6]} 13... b5 {[%clk 0:01:59.8]} 14. Kb1 {[%clk
0:02:18.1]} 14... b4 {[%clk 0:01:59.1]} 15. c4 {[%clk 0:02:15.3]} 15... Nc5
{[%clk 0:01:55.1]} 16. Be2 {[%clk 0:02:11.3]} 16... a5 {[%clk 0:01:53.2]} 17. g5
{[%clk 0:02:10.8]} 17... h5 {[%clk 0:01:49.6]} 18. Nb3 {[%clk 0:02:05.9]} 18...
Qb6 {[%clk 0:01:46]} 19. Nxc5 {[%clk 0:01:56.7]} 19... dxc5 {[%clk 0:01:45.6]}
20. f5 {[%clk 0:01:53.7]} 20... exf5 {[%clk 0:01:40.3]} 21. exf5 {[%clk
0:01:53.6]} 21... a4 {[%clk 0:01:30.9]} 22. f6 {[%clk 0:01:53]} 22... b3 {[%clk
0:01:29.1]} 23. Qe4 {[%clk 0:01:35.7]} 23... bxa2+ {[%clk 0:01:28.3]} 24. Ka1
{[%clk 0:01:34.9]} 24... a3 {[%clk 0:01:26.9]} 25. Bc1 {[%clk 0:01:29]} 25...
Rb8 {[%clk 0:01:04.7]} 26. Rd2 {[%clk 0:01:14.6]} 26... Re8 {[%clk 0:00:28.1]}
27. fxe7 {[%clk 0:01:11.6]} 27... Rxe7 {[%clk 0:00:27.8]} 28. Qc2 {[%clk
0:01:07.8]} 28... g6 {[%clk 0:00:23.3]} 29. Bd3 {[%clk 0:01:06.1]} 29... Nb4
{[%clk 0:00:22.4]} 30. Qc3 {[%clk 0:01:03.9]} 30... Nxd3 {[%clk 0:00:21.6]} 31.
Rxd3 {[%clk 0:01:00.6]} 31... Bf5 {[%clk 0:00:19.9]} 32. Rd2 {[%clk 0:00:59.2]}
32... Bb1 {[%clk 0:00:17.8]} 33. Ne5 {[%clk 0:00:47.4]} 33... Rbe8 {[%clk
0:00:09.5]} 34. Nd7 {[%clk 0:00:39.5]} 34... Qb4 {[%clk 0:00:09]} 35. Nf6+
{[%clk 0:00:38.7]} 35... Kh8 {[%clk 0:00:08]} 36. Nxe8+ {[%clk 0:00:36.9]} 36...
Qxc3 {[%clk 0:00:08]} 37. bxc3 {[%clk 0:00:35.5]} 37... Rxe8 {[%clk 0:00:08.3]}
38. Rhd1 {[%clk 0:00:33.6]} 38... Re4 {[%clk 0:00:07.6]} 39. Bxa3 {[%clk
0:00:30.9]} 39... Rxc4 {[%clk 0:00:07.2]} 40. Bb2 {[%clk 0:00:29.9]} 40... Rxh4
{[%clk 0:00:06.3]} 41. c4+ {[%clk 0:00:28.8]} 41... Kh7 {[%clk 0:00:05.9]} 42.
Rf2 {[%clk 0:00:27.3]} 42... Rg4 {[%clk 0:00:05.4]} 43. Rxf7+ {[%clk 0:00:26]}
43... Kg8 {[%clk 0:00:04.8]} 44. Rdd7 {[%clk 0:00:25.1]} 44... Rg1 {[%clk
0:00:03.4]} 45. Rg7+ {[%clk 0:00:24.9]} 45... Kf8 {[%clk 0:00:03.6]} 46. Rd8#
{[%clk 0:00:24.7]} 1-0

[Event "Early-Titled-Tuesday-Blitz-October-03-2023"]
[Site "Chess.com"]
[Date "2023.10.03"]
[Round "3"]
[White "UK_23"]
[Black "Witty_Alien"]
[Result "1-0"]
[WhiteElo "2444"]
[BlackElo "2225"]
[TimeControl "180+1"]
[EndTime "8:29:04 PDT"]
[Termination "UK_23 won by checkmate"]

1. e4 {[%clk 0:03:00.9]} 1... c5 {[%clk 0:02:59.6]} 2. Nf3 {[%clk 0:03:01]} 2...
d6 {[%clk 0:02:59.1]} 3. Bb5+ {[%clk 0:03:00.7]} 3... Bd7 {[%clk 0:02:53]} 4.
Bxd7+ {[%clk 0:02:59.2]} 4... Nxd7 {[%clk 0:02:53.9]} 5. c4 {[%clk 0:02:58.9]}
5... Ne5 {[%clk 0:02:51.8]} 6. d3 {[%clk 0:02:48.4]} 6... Nf6 {[%clk 0:02:37.7]}
7. O-O {[%clk 0:02:46.3]} 7... g6 {[%clk 0:02:32.1]} 8. Nc3 {[%clk 0:02:43.1]}
8... Bg7 {[%clk 0:02:32.1]} 9. Nxe5 {[%clk 0:02:43.5]} 9... dxe5 {[%clk
0:02:32.4]} 10. Be3 {[%clk 0:02:40.9]} 10... b6 {[%clk 0:02:24.7]} 11. Nd5
{[%clk 0:02:39.6]} 11... O-O {[%clk 0:02:23]} 12. b4 {[%clk 0:02:35.1]} 12...
Nxd5 {[%clk 0:02:22.1]} 13. cxd5 {[%clk 0:02:32.8]} 13... cxb4 {[%clk
0:02:22.5]} 14. Qa4 {[%clk 0:02:29.6]} 14... Rc8 {[%clk 0:01:38.3]} 15. Qxa7
{[%clk 0:02:24.2]} 15... Rc2 {[%clk 0:01:31.3]} 16. Rfc1 {[%clk 0:02:15.5]}
16... Qc8 {[%clk 0:01:10.1]} 17. Qxb6 {[%clk 0:02:12.3]} 17... Qc3 {[%clk
0:01:02.1]} 18. Qc5 {[%clk 0:01:49.5]} 18... Rxc1+ {[%clk 0:00:48.8]} 19. Rxc1
{[%clk 0:01:48.5]} 19... Qxd3 {[%clk 0:00:49.1]} 20. Qxb4 {[%clk 0:01:45.9]}
20... f5 {[%clk 0:00:49.7]} 21. Qc4 {[%clk 0:01:38.3]} 21... fxe4 {[%clk
0:00:43.7]} 22. h4 {[%clk 0:01:29.2]} 22... Rd8 {[%clk 0:00:25.5]} 23. a4 {[%clk
0:01:23.3]} 23... Rxd5 {[%clk 0:00:20.2]} 24. Qc8+ {[%clk 0:01:14.8]} 24... Rd8
{[%clk 0:00:17.1]} 25. Qe6+ {[%clk 0:01:14.8]} 25... Kh8 {[%clk 0:00:17.3]} 26.
a5 {[%clk 0:01:09.6]} 26... Bf6 {[%clk 0:00:12.7]} 27. a6 {[%clk 0:01:05.9]}
27... Rd6 {[%clk 0:00:13.1]} 28. Qc8+ {[%clk 0:00:52]} 28... Rd8 {[%clk
0:00:13.4]} 29. a7 {[%clk 0:00:48.9]} 29... Rxc8 {[%clk 0:00:03.3]} 30. Rxc8+
{[%clk 0:00:48.5]} 30... Kg7 {[%clk 0:00:04.2]} 31. a8=Q {[%clk 0:00:44.3]}
31... Qd1+ {[%clk 0:00:04.1]} 32. Kh2 {[%clk 0:00:44.3]} 32... Bxh4 {[%clk
0:00:04.6]} 33. Rg8+ {[%clk 0:00:42.7]} 33... Kf6 {[%clk 0:00:04.6]} 34. Qc6+
{[%clk 0:00:38.6]} 34... e6 {[%clk 0:00:04.1]} 35. Rf8+ {[%clk 0:00:31.6]} 35...
Kg7 {[%clk 0:00:04.4]} 36. Qe8 {[%clk 0:00:19.1]} 36... Bg5 {[%clk 0:00:04.6]}
37. Qf7+ {[%clk 0:00:16.9]} 37... Kh6 {[%clk 0:00:04.9]} 38. Bxg5+ {[%clk
0:00:16.9]} 38... Kxg5 {[%clk 0:00:05.8]} 39. Qf6+ {[%clk 0:00:16.7]} 39... Kh5
{[%clk 0:00:05.4]} 40. Qxe5+ {[%clk 0:00:14.5]} 40... g5 {[%clk 0:00:06]} 41.
Qg3 {[%clk 0:00:14.2]} 41... h6 {[%clk 0:00:03.8]} 42. Rf6 {[%clk 0:00:13.9]}
42... g4 {[%clk 0:00:02.9]} 43. Qe5+ {[%clk 0:00:12.8]} 43... Kh4 {[%clk
0:00:02.9]} 44. g3# {[%clk 0:00:13.4]} 1-0

[Event "Early-Titled-Tuesday-Blitz-October-03-2023"]
[Site "Chess.com"]
[Date "2023.10.03"]
[Round "3"]
[White "NovoselovRoman"]
[Black "Roedor"]
[Result "1-0"]
[WhiteElo "2596"]
[BlackElo "2394"]
[TimeControl "180+1"]
[EndTime "8:29:05 PDT"]
[Termination "NovoselovRoman won by resignation"]

1. e4 {[%clk 0:02:58.9]} 1... e5 {[%clk 0:02:57.7]} 2. Nf3 {[%clk 0:02:56.7]}
2... Nc6 {[%clk 0:02:57.3]} 3. Bc4 {[%clk 0:02:56.9]} 3... Bc5 {[%clk 0:02:57]}
4. Nc3 {[%clk 0:02:55.5]} 4... Nf6 {[%clk 0:02:56.6]} 5. d3 {[%clk 0:02:56]}
5... h6 {[%clk 0:02:56.8]} 6. Nd5 {[%clk 0:02:54.1]} 6... d6 {[%clk 0:02:56.4]}
7. c3 {[%clk 0:02:54.1]} 7... Bb6 {[%clk 0:02:53.9]} 8. Ne3 {[%clk 0:02:31.2]}
8... Be6 {[%clk 0:02:51.5]} 9. Bb5 {[%clk 0:02:21.3]} 9... O-O {[%clk
0:02:50.1]} 10. O-O {[%clk 0:02:17.3]} 10... Ne7 {[%clk 0:02:49.9]} 11. Ba4
{[%clk 0:02:15.3]} 11... c6 {[%clk 0:02:49.7]} 12. Nh4 {[%clk 0:02:13]} 12...
Ng6 {[%clk 0:02:42.1]} 13. Nhf5 {[%clk 0:02:12.2]} 13... Nf4 {[%clk 0:02:32.3]}
14. g3 {[%clk 0:02:04.1]} 14... Nh3+ {[%clk 0:02:26.6]} 15. Kg2 {[%clk
0:02:02.9]} 15... Ng5 {[%clk 0:02:21.9]} 16. h4 {[%clk 0:02:01.8]} 16... Ngh7
{[%clk 0:02:21.5]} 17. Bc2 {[%clk 0:01:57.1]} 17... Kh8 {[%clk 0:02:19.6]} 18.
g4 {[%clk 0:01:37.1]} 18... Ng8 {[%clk 0:02:14.2]} 19. Qf3 {[%clk 0:01:31.5]}
19... g6 {[%clk 0:02:12.1]} 20. Ng3 {[%clk 0:01:28.6]} 20... Qxh4 {[%clk
0:02:07.7]} 21. Rh1 {[%clk 0:01:27.7]} 21... Qe7 {[%clk 0:02:02]} 22. Nef5
{[%clk 0:01:27.6]} 22... gxf5 {[%clk 0:02:01.2]} 23. gxf5 {[%clk 0:01:27.4]}
23... Bd7 {[%clk 0:01:42.2]} 24. Bxh6 {[%clk 0:01:24.5]} 24... Nxh6 {[%clk
0:01:42]} 25. Rxh6 {[%clk 0:01:23.3]} 25... f6 {[%clk 0:01:21.6]} 26. Rxh7+
{[%clk 0:01:13.5]} 26... Qxh7 {[%clk 0:00:53.3]} 27. Rh1 {[%clk 0:01:14.1]}
27... Qxh1+ {[%clk 0:00:53.3]} 28. Kxh1 {[%clk 0:01:10.6]} 28... Rf7 {[%clk
0:00:53.3]} 29. Kg2 {[%clk 0:00:56.6]} 29... Rh7 {[%clk 0:00:45.8]} 30. Bb3
{[%clk 0:00:45.6]} 30... Be8 {[%clk 0:00:40.4]} 31. Qg4 {[%clk 0:00:42.7]} 31...
d5 {[%clk 0:00:17.1]} 32. exd5 {[%clk 0:00:39.4]} 32... cxd5 {[%clk 0:00:18]}
33. Bxd5 {[%clk 0:00:39.3]} 33... Bc6 {[%clk 0:00:18.2]} 34. Bxc6 {[%clk
0:00:31.9]} 34... bxc6 {[%clk 0:00:19.1]} 35. Kf3 {[%clk 0:00:29.6]} 35... Rg8
{[%clk 0:00:18.3]} 36. Qc4 {[%clk 0:00:26.9]} 36... Rh2 {[%clk 0:00:17.7]} 37.
Ne4 {[%clk 0:00:26.2]} 37... Rgg2 {[%clk 0:00:09.7]} 38. Qxc6 {[%clk 0:00:23.2]}
38... Rxf2+ {[%clk 0:00:08.2]} 39. Nxf2 {[%clk 0:00:22.6]} 39... Rxf2+ {[%clk
0:00:09.1]} 40. Kg3 {[%clk 0:00:21.7]} 40... Rxf5 {[%clk 0:00:08.6]} 41. Qc8+
{[%clk 0:00:21.5]} 1-0